[Event "FISU WUMSCC Men 2024"]
[Site "Entebbe"]
[Date "2024.06.27"]
[Round "5.1"]
[White "Walter, Szymon"]
[Black "Szpar, Milosz"]
[Result "0-1"]
[ECO "C01"]
[WhiteElo "2313"]
[BlackElo "2497"]
[Annotator "TA"]
[PlyCount "74"]
[EventDate "2024.06.24"]
[EventType "swiss"]
[EventCountry "UGA"]
[SourceTitle "playchess.com"]
[Source "ChessBase"]
[SourceQuality "1"]
[TimeControl "5400+30"]

{[%evp 9,74,9,17,-1,0,-26,-34,-35,-37,-49,-47,-65,-53,-37,-43,-60,-56,-39,-60,-110,-109,-98,-108,-100,-89,-83,-97,-125,-124,-125,-77,-83,-60,-92,-124,-116,-118,-99,-96,-105,-101,-143,-135,-196,-191,-200,-187,-252,-256,-288,-284,-305,-293,-318,-325,-308,-320,-406,-358,-370,-400,-396,-395,-377,-368,-5306,-5531]} 1. e4 {[%emt 0:00:05]} e6 {[%emt 0:03:36]} 2. d4 {[%emt 0:00:17]} d5 {[%emt 0:00:05]} 3. exd5 {[%emt 0:02:59]} exd5 {[%emt 0:00:10]} 4. Nf3 {[%emt 0:00:14]} Nf6 {[%emt 0:00:08]} 5. Bd3 {[%emt 0:00:37]} c5 {[%emt 0:00:12]} 6. Qe2+ {[%emt 0:01:51]} Be7 {[%emt 0:04:37] [#] aiming for ...c4.} 7. Bb5+ {[%emt 0:17:20]} Nc6 {[%emt 0:16:56]} 8. Ne5 {[%emt 0:06:52] Black is slightly better.} Bd7 {[%emt 0:02:53]} ({Stronger than} 8... cxd4 9. Nxc6 bxc6 10. Bxc6+ Bd7 11. Bxa8 $16) 9. c3 {[%emt 0:18:12]} O-O {[%emt 0:06:45]} 10. Bxc6 {[%emt 0:13:24]} bxc6 {[%emt 0:04:25]} 11. O-O {[%emt 0:00:11]} Re8 {[%emt 0:02:43]} 12. Bf4 {[%emt 0:06:59]} Qb6 {[%emt 0:05:11]} 13. Nxd7 {[%emt 0:07:18]} Nxd7 {[%emt 0:00:06]} 14. Qd2 {[%emt 0:01:11]} (14. dxc5 $1 $15 Nxc5 (14... Bxc5 15. Qd2 $17) 15. Qc2) 14... cxd4 $17 {[%emt 0:06:58]} 15. cxd4 {[%emt 0:00:08]} Bf6 {[%emt 0:00:13] Black is more active.} 16. Nc3 {[%emt 0:12:04]} Qxd4 {[%emt 0:00:44]} 17. Qxd4 {[%emt 0:00:04]} Bxd4 {[%emt 0:00:06]} 18. Rfd1 {[%emt 0:00:08]} Bxc3 {[%emt 0:15:47]} 19. bxc3 {[%emt 0:00:28]} Re4 {[%emt 0:02:17]} (19... Nb6 $142 20. Rab1 g6) 20. Rd4 {[%emt 0:01:26]} Nc5 {[%emt 0:04:35]} 21. Kf1 {[%emt 0:00:55] Inhibits Re2.} Rxd4 {[%emt 0:03:15]} 22. cxd4 {[%emt 0:01:34][%mdl 4096] Endgame. KRB-KRN} Ne6 {[%emt 0:00:04][%csl LRd4,LRf4]} 23. Be3 {[%emt 0:00:43]} Rb8 {[%emt 0:00:05] Inhibits Rb1.} 24. Rc1 {[%emt 0:00:54]} Rb6 {[%emt 0:00:07]} 25. g4 {[%emt 0:00:56]} g6 {[%emt 0:04:07]} 26. Kg2 {[%emt 0:00:55]} (26. a4 $17) 26... f5 $19 {[%emt 0:00:26]} 27. gxf5 {[%emt 0:00:31]} gxf5 {[%emt 0:00:04]} 28. Kf3 {[%emt 0:00:10]} (28. a4 {was necessary.}) 28... Kf7 {[%emt 0:00:34]} 29. h4 {[%emt 0:00:09]} h5 {[%emt 0:04:26]} 30. Kg3 {[%emt 0:05:02]} Ra6 {[%emt 0:01:08][%cal Oa6a3] And now ...Ra3! would win.} 31. a4 {[%emt 0:00:52]} f4+ {[%emt 0:01:26]} (31... Rxa4 32. Rxc6 Ra3 (32... Nxd4 33. Rc7+ Ke6 34. Rh7 $17) 33. Kg2 $19) 32. Bxf4 {[%emt 0:00:06]} Nxd4 {[%emt 0:00:03]} 33. Re1 {[%emt 0:00:50] Wards off Ne2+} Nf5+ {[%emt 0:00:36]} 34. Kh3 {[%emt 0:00:10]} Rxa4 {[%emt 0:00:06]} 35. Bg5 {[%emt 0:00:04]} a5 {[%emt 0:06:23]} 36. Re5 {[%emt 0:00:16]} Ng7 {[%emt 0:02:28]} 37. f4 $2 {[%emt 0:01:16] [#]} (37. Re7+ Kg6 38. Rd7) 37... Re4 {[%emt 0:00:13] Weighted Error Value: White=0.37/Black=0.03 (flawless) .  Mistake:       	White=4     	Black=1      Inaccurate:     	White=3     	---        OK:         	White=9     	Black=20     Best:        	White=3     	Black=4} 0-1

[Event "FISU WUMSCC Men 2024"]
[Site "Entebbe"]
[Date "2024.06.27"]
[Round "5.2"]
[White "Gatineau, Yovann"]
[Black "Szustakowski, Antoni"]
[Result "1/2-1/2"]
[ECO "D39"]
[WhiteElo "2414"]
[BlackElo "2362"]
[Annotator "RC"]
[PlyCount "110"]
[EventDate "2024.06.24"]
[EventType "swiss"]
[EventCountry "UGA"]
[SourceTitle "playchess.com"]
[Source "ChessBase"]
[SourceQuality "1"]
[TimeControl "5400+30"]

1. d4 {[%emt 0:02:55]} Nf6 {[%emt 0:00:11]} 2. c4 {[%emt 0:00:06]} e6 {[%emt 0:00:09]} 3. Nf3 {[%emt 0:00:19]} d5 {[%emt 0:00:06]} 4. Nc3 {[%emt 0:00:07]} dxc4 {[%emt 0:00:14]} 5. e4 {[%emt 0:00:10]} Bb4 {[%emt 0:00:06]} 6. Bg5 {[%emt 0:00:13]} h6 {[%emt 0:00:07]} 7. Bxf6 {[%emt 0:00:16]} Qxf6 {[%emt 0:00:05]} 8. Bxc4 {[%emt 0:00:05]} c5 {[%emt 0:00:19]} 9. O-O {[%emt 0:00:36]} O-O {[%emt 0:00:30]} 10. e5 {[%emt 0:03:51]} Qd8 {[%emt 0:00:12]} 11. Ne4 {[%emt 0:03:10]} cxd4 {[%emt 0:00:06]} 12. Qe2 {[%emt 0:02:15]} Be7 {[%emt 0:00:06]} 13. Bd3 {[%emt 0:02:32]} Nd7 {[%emt 0:02:14]} 14. a3 {[%emt 0:04:58]} Qb6 {[%emt 0:11:14]} 15. Rac1 {[%emt 0:06:25]} Rd8 {[%emt 0:04:10]} 16. h4 {[%emt 0:06:08]} Nf8 {[%emt 0:11:41]} 17. Nfd2 {[%emt 0:04:12]} Bd7 {[%emt 0:08:03]} 18. Nc4 {[%emt 0:04:20]} Qc7 {[%emt 0:00:10]} 19. Qg4 {[%emt 0:07:25]} Bc6 {[%emt 0:12:21]} 20. Rfe1 {[%emt 0:05:24]} Ng6 {[%emt 0:11:26]} 21. f4 {[%emt 0:31:58]} Bxh4 {[%emt 0:00:22]} 22. g3 {[%emt 0:02:16]} Be7 {[%emt 0:02:48]} 23. Nf6+ {[%emt 0:01:41]} Bxf6 {[%emt 0:05:04]} 24. exf6 {[%emt 0:00:05]} gxf6 {[%emt 0:00:02]} 25. Bxg6 {[%emt 0:01:18]} fxg6 {[%emt 0:00:13]} 26. Rxe6 {[%emt 0:00:41]} Qg7 {[%emt 0:13:55]} 27. Qe2 {[%emt 0:03:42]} Re8 {[%emt 0:10:20]} 28. Nd6 {[%emt 0:01:21]} Rxe6 {[%emt 0:00:04]} 29. Qxe6+ {[%emt 0:00:04]} Kh7 {[%emt 0:00:02]} 30. Rd1 {[%emt 0:00:54]} f5 {[%emt 0:03:01]} 31. Qe5 {[%emt 0:02:30]} Qxe5 {[%emt 0:00:56]} 32. fxe5 {[%emt 0:00:01]} Rd8 {[%emt 0:00:48]} 33. Rxd4 {[%emt 0:00:04]} Rd7 {[%emt 0:00:44]} 34. Kf2 {[%emt 0:01:17]} Re7 {[%emt 0:01:07]} 35. Nc4 {[%emt 0:00:53]} g5 {[%emt 0:01:21]} 36. Na5 {[%emt 0:01:11]} Rxe5 {[%emt 0:01:57]} 37. Nxc6 {[%emt 0:00:02]} bxc6 {[%emt 0:00:04]} 38. Rd7+ {[%emt 0:00:10]} Kg6 {[%emt 0:00:02]} 39. Rxa7 {[%emt 0:00:24]} Rb5 {[%emt 0:00:02]} 40. b4 {[%emt 0:00:06]} c5 {[%emt 0:00:02]} 41. Ra5 {[%emt 0:00:17]} Rb8 {[%emt 0:02:44]} 42. Rxc5 {[%emt 0:00:04]} Kf6 {[%emt 0:00:21]} 43. b5 {[%emt 0:01:26]} Ke6 {[%emt 0:00:34]} 44. a4 {[%emt 0:01:21]} Ra8 {[%emt 0:00:38]} 45. Rc6+ {[%emt 0:00:42]} Kd5 {[%emt 0:00:05]} 46. Rf6 {[%emt 0:00:41]} Rxa4 {[%emt 0:00:25]} 47. Rxf5+ {[%emt 0:00:04]} Ke4 {[%emt 0:01:19]} 48. g4 {[%emt 0:00:06]} Ra2+ {[%emt 0:00:07]} 49. Kg3 {[%emt 0:00:06]} Rb2 {[%emt 0:00:33]} 50. Rf6 {[%emt 0:00:16]} Rb3+ {[%emt 0:00:15]} 51. Kg2 {[%emt 0:00:06]} Rxb5 {[%emt 0:00:03]} 52. Rxh6 {[%emt 0:00:04]} Kf4 {[%emt 0:00:04]} 53. Ra6 {[%emt 0:00:07]} Rb2+ {[%emt 0:00:12]} 54. Kg1 {[%emt 0:00:05]} Kxg4 {[%emt 0:00:06]} 55. Ra3 {[%emt 0:00:03]} Rc2 {[%emt 0:00:06]} 1/2-1/2

[Event "FISU WUMSCC Men 2024"]
[Site "Entebbe"]
[Date "2024.06.27"]
[Round "5.3"]
[White "Mladek, Richard"]
[Black "Thilakarathne, G M H"]
[Result "1/2-1/2"]
[ECO "E48"]
[WhiteElo "2385"]
[BlackElo "2356"]
[Annotator "RC"]
[PlyCount "40"]
[EventDate "2024.06.24"]
[EventType "swiss"]
[EventCountry "UGA"]
[SourceTitle "playchess.com"]
[Source "ChessBase"]
[SourceQuality "1"]
[TimeControl "5400+30"]

1. d4 {[%emt 0:00:01]} Nf6 {[%emt 0:02:27]} 2. c4 {[%emt 0:00:08]} e6 {[%emt 0:00:08]} 3. Nc3 {[%emt 0:00:04]} Bb4 {[%emt 0:00:04]} 4. e3 {[%emt 0:00:05]} O-O {[%emt 0:00:08]} 5. Bd3 {[%emt 0:00:04]} d5 {[%emt 0:02:56]} 6. cxd5 {[%emt 0:00:32]} exd5 {[%emt 0:00:12]} 7. a3 {[%emt 0:00:10]} Bd6 {[%emt 0:06:55]} 8. Qc2 {[%emt 0:01:03]} a6 {[%emt 0:02:10]} 9. Nge2 {[%emt 0:03:41]} Nbd7 {[%emt 0:01:53]} 10. b4 {[%emt 0:01:45]} a5 {[%emt 0:02:02]} 11. b5 {[%emt 0:05:52]} c5 {[%emt 0:00:37]} 12. O-O {[%emt 0:10:38]} g6 {[%emt 0:09:06]} 13. Nf4 {[%emt 0:01:30]} c4 {[%emt 0:07:02]} 14. Be2 {[%emt 0:00:51]} Nb6 {[%emt 0:00:30]} 15. f3 {[%emt 0:08:52]} Bf5 {[%emt 0:11:15]} 16. Qd1 {[%emt 0:03:32]} h5 {[%emt 0:04:34]} 17. Qe1 {[%emt 0:04:39]} Bxf4 {[%emt 0:10:54]} 18. exf4 {[%emt 0:00:07]} Re8 {[%emt 0:00:31]} 19. Qd2 {[%emt 0:04:45]} a4 {[%emt 0:04:37]} 20. Bb2 {[%emt 0:02:35]} Qd6 {[%emt 0:02:52]} 1/2-1/2

[Event "FISU WUMSCC Men 2024"]
[Site "Entebbe"]
[Date "2024.06.27"]
[Round "5.4"]
[White "Horak, Martin"]
[Black "Turcan, Richard"]
[Result "0-1"]
[ECO "B30"]
[WhiteElo "2333"]
[BlackElo "2374"]
[Annotator "RC"]
[PlyCount "90"]
[EventDate "2024.06.24"]
[EventType "swiss"]
[EventCountry "UGA"]
[SourceTitle "playchess.com"]
[Source "ChessBase"]
[SourceQuality "1"]
[TimeControl "5400+30"]

1. e4 {[%emt 0:00:31]} c5 {[%emt 0:03:45]} 2. Nf3 {[%emt 0:00:05]} Nc6 {[%emt 0:00:48]} 3. Bb5 {[%emt 0:00:11]} e6 {[%emt 0:00:05]} 4. O-O {[%emt 0:00:06]} Nge7 {[%emt 0:00:02]} 5. d4 {[%emt 0:00:09]} cxd4 {[%emt 0:00:08]} 6. Nxd4 {[%emt 0:00:05]} Ng6 {[%emt 0:02:38]} 7. Be2 {[%emt 0:00:51]} Qc7 {[%emt 0:02:42]} 8. Nb5 {[%emt 0:13:12]} Qb8 {[%emt 0:02:11]} 9. a4 {[%emt 0:04:24]} a6 {[%emt 0:04:53]} 10. N5a3 {[%emt 0:00:15]} Bd6 {[%emt 0:02:47]} 11. g3 {[%emt 0:02:09]} O-O {[%emt 0:03:26]} 12. Nc4 {[%emt 0:02:33]} Bc7 {[%emt 0:01:18]} 13. Be3 {[%emt 0:03:46]} b6 {[%emt 0:06:54]} 14. f4 {[%emt 0:03:55]} d5 {[%emt 0:04:21]} 15. exd5 {[%emt 0:02:21]} Rd8 {[%emt 0:01:04]} 16. d6 {[%emt 0:05:30]} Bxd6 {[%emt 0:00:29]} 17. Nxd6 {[%emt 0:00:26]} Rxd6 {[%emt 0:00:13]} 18. Qe1 {[%emt 0:01:11]} Nd4 {[%emt 0:04:25]} 19. Bxd4 {[%emt 0:18:19]} Rxd4 {[%emt 0:00:11]} 20. Bf3 {[%emt 0:00:35]} Bb7 {[%emt 0:07:30]} 21. Qe3 {[%emt 0:01:57]} Rd8 {[%emt 0:01:24]} 22. Nc3 {[%emt 0:03:38]} Bxf3 {[%emt 0:00:48]} 23. Qxf3 {[%emt 0:00:18]} Qc7 {[%emt 0:00:26]} 24. Rad1 {[%emt 0:01:02]} Ne7 {[%emt 0:01:48]} 25. Rd3 {[%emt 0:02:57]} Nc6 {[%emt 0:09:13]} 26. Rfd1 {[%emt 0:01:14]} Rxd3 {[%emt 0:00:44]} 27. Rxd3 {[%emt 0:00:18]} h6 {[%emt 0:01:11]} 28. Ne4 {[%emt 0:04:35]} Rd8 {[%emt 0:03:41]} 29. c3 {[%emt 0:02:04]} Na5 {[%emt 0:02:53]} 30. Qd1 {[%emt 0:01:08]} Rxd3 {[%emt 0:01:28]} 31. Qxd3 {[%emt 0:00:06]} Qc6 {[%emt 0:01:00]} 32. Qd8+ {[%emt 0:06:36]} Kh7 {[%emt 0:00:13]} 33. Qd3 {[%emt 0:00:16]} f5 {[%emt 0:02:29]} 34. Nd6 {[%emt 0:08:51]} Qxa4 {[%emt 0:02:17]} 35. b4 {[%emt 0:00:06]} Nb3 {[%emt 0:02:13]} 36. Nxf5 {[%emt 0:03:21]} Qa1+ {[%emt 0:11:09]} 37. Kg2 {[%emt 0:00:41]} Qa2+ {[%emt 0:00:44]} 38. Kh3 {[%emt 0:00:49]} Nc1 {[%emt 0:00:13]} 39. Qe3 {[%emt 0:01:11]} exf5 {[%emt 0:00:20]} 40. Qxc1 {[%emt 0:00:05]} Qe2 {[%emt 0:06:02]} 41. c4 {[%emt 0:01:30]} g5 {[%emt 0:00:39]} 42. fxg5 {[%emt 0:00:36]} hxg5 {[%emt 0:00:07]} 43. Qxg5 {[%emt 0:07:01]} Qf1+ {[%emt 0:00:06]} 44. Kh4 {[%emt 0:00:05]} Qxc4+ {[%emt 0:00:03]} 45. Kh5 {[%emt 0:00:27]} Qg4+ {[%emt 0:00:24]} 0-1

[Event "FISU WUMSCC Men 2024"]
[Site "Entebbe"]
[Date "2024.06.27"]
[Round "5.5"]
[White "Mthembu, Lovers"]
[Black "Defromont, Benjamin"]
[Result "0-1"]
[ECO "C50"]
[WhiteElo "1876"]
[BlackElo "2380"]
[Annotator "RC"]
[PlyCount "96"]
[EventDate "2024.06.24"]
[EventType "swiss"]
[EventCountry "UGA"]
[SourceTitle "playchess.com"]
[Source "ChessBase"]
[SourceQuality "1"]
[TimeControl "5400+30"]

1. e4 {[%emt 0:00:02]} e5 {[%emt 0:04:50]} 2. Nf3 {[%emt 0:00:35]} Nc6 {[%emt 0:01:07]} 3. Bc4 {[%emt 0:00:11]} g6 {[%emt 0:01:05]} 4. O-O {[%emt 0:01:22]} Bg7 {[%emt 0:00:17]} 5. a3 {[%emt 0:00:42]} d6 {[%emt 0:00:57]} 6. Nc3 {[%emt 0:01:11]} Nf6 {[%emt 0:00:10]} 7. d3 {[%emt 0:00:44]} O-O {[%emt 0:00:36]} 8. Bg5 {[%emt 0:00:49]} h6 {[%emt 0:00:13]} 9. Be3 {[%emt 0:00:15]} Kh7 {[%emt 0:01:21]} 10. Qd2 {[%emt 0:00:53]} Ng4 {[%emt 0:00:24]} 11. h3 {[%emt 0:01:21]} Nxe3 {[%emt 0:00:09]} 12. fxe3 {[%emt 0:00:07]} f5 {[%emt 0:00:52]} 13. Rf2 {[%emt 0:15:20]} Ne7 {[%emt 0:02:58]} 14. Bb3 {[%emt 0:05:22]} c6 {[%emt 0:00:45]} 15. Raf1 {[%emt 0:03:20]} d5 {[%emt 0:02:32]} 16. exf5 {[%emt 0:01:38]} Nxf5 {[%emt 0:05:44]} 17. e4 {[%emt 0:02:53]} Ng3 {[%emt 0:00:13]} 18. Re1 {[%emt 0:00:19]} d4 {[%emt 0:00:11]} 19. Ne2 {[%emt 0:00:11]} Nxe2+ {[%emt 0:00:18]} 20. Qxe2 {[%emt 0:00:38]} Qe7 {[%emt 0:01:24]} 21. Ref1 {[%emt 0:01:03]} Bd7 {[%emt 0:00:46]} 22. Qd2 {[%emt 0:08:36]} Rf4 {[%emt 0:03:27]} 23. Qb4 {[%emt 0:02:53]} Qxb4 {[%emt 0:01:14]} 24. axb4 {[%emt 0:00:01]} Raf8 {[%emt 0:00:22]} 25. g3 {[%emt 0:08:23]} R4f6 {[%emt 0:00:44]} 26. Kg2 {[%emt 0:00:09]} g5 {[%emt 0:02:07]} 27. Ng1 {[%emt 0:01:09]} Rxf2+ {[%emt 0:03:04]} 28. Rxf2 {[%emt 0:00:01]} Rxf2+ {[%emt 0:00:07]} 29. Kxf2 {[%emt 0:00:04]} Bf8 {[%emt 0:00:11]} 30. Nf3 {[%emt 0:02:44]} Bxb4 {[%emt 0:01:11]} 31. Nxe5 {[%emt 0:01:43]} Bxh3 {[%emt 0:00:52]} 32. g4 {[%emt 0:03:51]} Bd6 {[%emt 0:00:52]} 33. Kg3 {[%emt 0:00:43]} Bxg4 {[%emt 0:01:51]} 34. Kxg4 {[%emt 0:00:08]} Bxe5 {[%emt 0:00:03]} 35. Kf5 {[%emt 0:03:12]} Bc7 {[%emt 0:00:04]} 36. Bf7 {[%emt 0:01:21]} Kg7 {[%emt 0:00:19]} 37. Be8 {[%emt 0:00:21]} a5 {[%emt 0:04:04]} 38. Bd7 {[%emt 0:03:17]} a4 {[%emt 0:05:40]} 39. Bc8 {[%emt 0:08:58]} b5 {[%emt 0:00:29]} 40. Bd7 {[%emt 0:02:42]} b4 {[%emt 0:00:05]} 41. Bxc6 {[%emt 0:00:05]} a3 {[%emt 0:00:05]} 42. bxa3 {[%emt 0:00:03]} bxa3 {[%emt 0:00:06]} 43. Bd5 {[%emt 0:00:07]} Bd8 {[%emt 0:00:09]} 44. e5 {[%emt 0:10:28]} h5 {[%emt 0:01:10]} 45. Ke4 {[%emt 0:00:07]} Bb6 {[%emt 0:01:00]} 46. Kf5 {[%emt 0:01:28]} g4 {[%emt 0:00:16]} 47. e6 {[%emt 0:00:13]} Bd8 {[%emt 0:00:08]} 48. Ke4 {[%emt 0:00:18]} g3 {[%emt 0:00:10]} 0-1

[Event "FISU WUMSCC Men 2024"]
[Site "Entebbe"]
[Date "2024.06.27"]
[Round "5.6"]
[White "Nyola Wasswa Mark"]
[Black "Almuntasir, mohamed khalifah"]
[Result "1-0"]
[ECO "C00"]
[WhiteElo "2067"]
[BlackElo "1724"]
[Annotator "NA RC"]
[PlyCount "57"]
[EventDate "2024.06.24"]
[EventType "swiss"]
[EventCountry "UGA"]
[SourceTitle "playchess.com"]
[Source "ChessBase"]
[SourceQuality "1"]
[TimeControl "5400+30"]

1. e4 {[%emt 0:00:02]} e6 {[%emt 0:00:19]} 2. d3 {[%emt 0:01:56]} d5 {[%emt 0:00:21]} 3. Nd2 {[%emt 0:00:29]} dxe4 {[%emt 0:00:51]} 4. dxe4 {[%emt 0:00:19]} e5 {[%emt 0:01:23]} 5. Ngf3 {[%emt 0:00:23]} Nc6 {[%emt 0:00:08]} 6. Bb5 {[%emt 0:00:38] C00: French: Unusual White 2nd moves.} Bc5 {[%emt 0:00:21]} 7. O-O {[%emt 0:00:45]} Qe7 {[%emt 0:00:29]} 8. Nc4 {[%emt 0:05:24]} Bd6 {[%emt 0:00:28]} 9. Na5 {[%emt 0:00:57]} Bd7 {[%emt 0:01:08]} 10. Nxb7 {[%emt 0:02:31]} Nf6 {[%emt 0:00:17]} 11. Nxd6+ {[%emt 0:02:08]} cxd6 {[%emt 0:00:16]} 12. Re1 {[%emt 0:01:30]} O-O {[%emt 0:00:15]} 13. c3 {[%emt 0:01:14]} Rab8 {[%emt 0:00:16]} 14. a4 {[%emt 0:00:46]} Rfc8 {[%emt 0:00:28]} 15. b3 {[%emt 0:06:16]} Na5 {[%emt 0:04:11]} 16. Ba3 {[%emt 0:00:43]} Rb6 {[%emt 0:00:35]} 17. Bb4 {[%emt 0:03:24]} Nb7 {[%emt 0:00:47]} 18. Bxd7 {[%emt 0:01:25]} Qxd7 {[%emt 0:01:01]} 19. a5 {[%emt 0:00:07]} Rb5 {[%emt 0:01:23]} 20. Qe2 {[%emt 0:07:11]} Nc5 {[%emt 0:01:36]} 21. Nd2 {[%emt 0:00:40]} Na6 {[%emt 0:08:42]} 22. Bxd6 {[%emt 0:14:31]} Rxc3 {[%emt 0:00:11]} 23. Nc4 {[%emt 0:01:07]} Rcxb3 {[%emt 0:09:52]} 24. Bxe5 {[%emt 0:01:37]} Qe6 {[%emt 0:00:59]} 25. Bxf6 {[%emt 0:02:48]} Qxf6 {[%emt 0:00:27]} 26. e5 $18 {[%emt 0:00:59]} Qc6 {[%emt 0:03:11]} 27. Nd6 {[%emt 0:04:54]} Rb2 {[%emt 0:02:55]} 28. Qg4 {[%emt 0:05:24]} Rc5 {[%emt 0:01:20]} 29. Nf5 {[%emt 0:00:46]} 1-0

[Event "FISU WUMSCC Men 2024"]
[Site "Entebbe"]
[Date "2024.06.27"]
[Round "5.7"]
[White "Alfaitori, Abdallah"]
[Black "Jakab, Bela"]
[Result "1/2-1/2"]
[ECO "D30"]
[WhiteElo "1947"]
[BlackElo "2390"]
[Annotator "RC"]
[PlyCount "70"]
[EventDate "2024.06.24"]
[EventType "swiss"]
[EventCountry "UGA"]
[SourceTitle "playchess.com"]
[Source "ChessBase"]
[SourceQuality "1"]
[TimeControl "5400+30"]

1. d4 {[%emt 0:00:02]} d5 {[%emt 0:00:17]} 2. c4 {[%emt 0:00:47]} e6 {[%emt 0:00:08]} 3. Nf3 {[%emt 0:00:10]} Nf6 {[%emt 0:00:05]} 4. Bg5 {[%emt 0:00:21]} Be7 {[%emt 0:00:07]} 5. e3 {[%emt 0:00:14]} O-O {[%emt 0:00:18]} 6. Bd3 {[%emt 0:00:21]} dxc4 {[%emt 0:00:19]} 7. Bxc4 {[%emt 0:00:13]} c5 {[%emt 0:00:29]} 8. O-O {[%emt 0:00:51]} h6 {[%emt 0:01:20]} 9. Bh4 {[%emt 0:00:45]} cxd4 {[%emt 0:05:59]} 10. Nxd4 {[%emt 0:03:25]} e5 {[%emt 0:01:42]} 11. Nf3 {[%emt 0:04:16]} Qc7 {[%emt 0:05:12]} 12. Qb3 {[%emt 0:06:21]} Nc6 {[%emt 0:00:42]} 13. Rc1 {[%emt 0:03:46]} Ne4 {[%emt 0:23:38]} 14. Bxe7 {[%emt 0:07:24]} Qxe7 {[%emt 0:00:03]} 15. Bd5 {[%emt 0:02:32]} Nf6 {[%emt 0:01:49]} 16. Bxc6 {[%emt 0:09:10]} bxc6 {[%emt 0:00:03]} 17. Qc3 {[%emt 0:00:42]} Re8 {[%emt 0:01:55]} 18. Qc5 {[%emt 0:03:56]} Qb7 {[%emt 0:06:53]} 19. Nbd2 {[%emt 0:16:22]} e4 {[%emt 0:11:18]} 20. Nd4 {[%emt 0:03:37]} Be6 {[%emt 0:00:46]} 21. Qxc6 {[%emt 0:07:33]} Qxb2 {[%emt 0:01:31]} 22. Nxe4 {[%emt 0:10:43]} Nxe4 {[%emt 0:08:55]} 23. Qxe4 {[%emt 0:00:19]} Bxa2 {[%emt 0:00:48]} 24. Qg4 {[%emt 0:09:01]} Be6 {[%emt 0:01:22]} 25. Nxe6 {[%emt 0:02:05]} Rxe6 {[%emt 0:00:15]} 26. Qf3 {[%emt 0:01:50]} Ree8 {[%emt 0:04:44]} 27. g3 {[%emt 0:01:47]} a5 {[%emt 0:00:23]} 28. Rab1 {[%emt 0:02:18]} Qa2 {[%emt 0:02:07]} 29. Ra1 {[%emt 0:01:55]} Qe6 {[%emt 0:00:20]} 30. Rc5 {[%emt 0:01:19]} a4 {[%emt 0:00:38]} 31. Qc6 {[%emt 0:01:06]} Qb3 {[%emt 0:11:40]} 32. Rb5 {[%emt 0:00:26]} Qd3 {[%emt 0:00:06]} 33. Rb4 {[%emt 0:00:51]} a3 {[%emt 0:01:06]} 34. Ra4 {[%emt 0:00:17]} Rac8 {[%emt 0:01:29]} 35. R4xa3 {[%emt 0:00:14]} Qf5 {[%emt 0:00:58]} 1/2-1/2

[Event "FISU WUMSCC Men 2024"]
[Site "Entebbe"]
[Date "2024.06.27"]
[Round "5.8"]
[White "Alinda Collins"]
[Black "Alrehaili, Ahmed Abdullah S"]
[Result "0-1"]
[ECO "C02"]
[WhiteElo "1845"]
[BlackElo "2134"]
[Annotator "RC"]
[PlyCount "102"]
[EventDate "2024.06.24"]
[EventType "swiss"]
[EventCountry "UGA"]
[SourceTitle "playchess.com"]
[Source "ChessBase"]
[SourceQuality "1"]
[TimeControl "5400+30"]

1. e4 {[%emt 0:00:30]} e6 {[%emt 0:02:06]} 2. d4 {[%emt 0:00:52]} d5 {[%emt 0:00:03]} 3. e5 {[%emt 0:01:57]} c5 {[%emt 0:00:08]} 4. c3 {[%emt 0:00:16]} Bd7 {[%emt 0:00:50]} 5. Nf3 {[%emt 0:01:04]} Qb6 {[%emt 0:00:12]} 6. a3 {[%emt 0:00:26]} Bb5 {[%emt 0:03:36]} 7. c4 {[%emt 0:03:20]} Bxc4 {[%emt 0:00:57]} 8. Bxc4 {[%emt 0:00:10]} dxc4 {[%emt 0:00:05]} 9. d5 {[%emt 0:00:29]} exd5 {[%emt 0:01:53]} 10. Qxd5 {[%emt 0:00:20]} Ne7 {[%emt 0:03:01]} 11. Qxc4 {[%emt 0:00:27]} Qa6 {[%emt 0:09:50]} 12. Qxc5 {[%emt 0:02:52]} Nd7 {[%emt 0:01:16]} 13. Qc2 {[%emt 0:00:20]} Rc8 {[%emt 0:00:32]} 14. Nc3 {[%emt 0:00:29]} Ng6 {[%emt 0:05:07]} 15. Be3 {[%emt 0:01:43]} Bb4 {[%emt 0:02:46]} 16. Rd1 {[%emt 0:02:03]} Bxc3+ {[%emt 0:01:35]} 17. bxc3 {[%emt 0:00:08]} Rc7 {[%emt 0:15:14]} 18. Qf5 {[%emt 0:05:35]} Qc4 {[%emt 0:02:30]} 19. Bd4 {[%emt 0:00:29]} O-O {[%emt 0:01:14]} 20. Nd2 {[%emt 0:00:19]} Qc6 {[%emt 0:04:06]} 21. O-O {[%emt 0:04:51]} Qxg2+ {[%emt 0:00:33]} 22. Kxg2 {[%emt 0:00:03]} Nh4+ {[%emt 0:00:08]} 23. Kg1 {[%emt 0:00:21]} Nxf5 {[%emt 0:00:04]} 24. Ne4 {[%emt 0:00:21]} h6 {[%emt 0:05:33]} 25. Rfe1 {[%emt 0:00:24]} Rc6 {[%emt 0:06:31]} 26. Rb1 {[%emt 0:02:47]} b6 {[%emt 0:00:18]} 27. Rb5 {[%emt 0:01:37]} Re8 {[%emt 0:03:48]} 28. Rd5 {[%emt 0:05:11]} Nf8 {[%emt 0:00:40]} 29. Rd1 {[%emt 0:01:45]} Ng6 {[%emt 0:08:01]} 30. Nd6 {[%emt 0:07:55]} Rd8 {[%emt 0:00:53]} 31. Rd3 {[%emt 0:06:50]} Nxd6 {[%emt 0:06:56]} 32. Rxd6 {[%emt 0:00:42]} Rdxd6 {[%emt 0:00:05]} 33. exd6 {[%emt 0:00:09]} Rxd6 {[%emt 0:00:05]} 34. Re3 {[%emt 0:00:35]} Re6 {[%emt 0:00:08]} 35. Rxe6 {[%emt 0:01:04]} fxe6 {[%emt 0:00:01]} 36. Kf1 {[%emt 0:00:59]} e5 {[%emt 0:00:16]} 37. Be3 {[%emt 0:00:08]} Kf7 {[%emt 0:00:13]} 38. Ke2 {[%emt 0:00:07]} Nf4+ {[%emt 0:00:53]} 39. Kf3 {[%emt 0:00:44]} Nd5 {[%emt 0:00:12]} 40. Bd2 {[%emt 0:00:37]} b5 {[%emt 0:00:49]} 41. Ke4 {[%emt 0:00:55]} Ke6 {[%emt 0:00:01]} 42. Kf3 {[%emt 0:00:13]} g5 {[%emt 0:00:17]} 43. Kg4 {[%emt 0:00:49]} Nf6+ {[%emt 0:00:02]} 44. Kf3 {[%emt 0:00:04]} Kf5 {[%emt 0:00:20]} 45. Ke2 {[%emt 0:01:19]} e4 {[%emt 0:00:20]} 46. h3 {[%emt 0:00:20]} Nd5 {[%emt 0:00:32]} 47. Kd1 {[%emt 0:00:42]} Nf4 {[%emt 0:00:30]} 48. a4 {[%emt 0:01:28]} a6 {[%emt 0:00:14]} 49. Bxf4 {[%emt 0:00:40]} Kxf4 {[%emt 0:00:12]} 50. axb5 {[%emt 0:00:17]} axb5 {[%emt 0:00:01]} 51. Ke2 {[%emt 0:00:16]} h5 {[%emt 0:00:08]} 0-1